fUSD/lending_fUSD_20240612
["ID","MTS","AMOUNT","RATE_DAILY","PERIOD"]
[329181812,1718152339829,-506.33,0.00023561,2]
[329181813,1718152339840,-678.38,0.00023561,2]
[329181814,1718152339851,-500.0,0.00023561,2]
[329181815,1718152339862,-1748.56,0.00023561,2]
[329181816,1718152339872,-766.68,0.00023561,2]
[329181817,1718152339883,-777.5,0.00023561,2]
[329181818,1718152339893,-1361.98,0.00023561,2]
[329181819,1718152339904,-522.21,0.00023561,2]
[329181820,1718152339915,-2220.69,0.00023561,2]
[329181821,1718152339932,-975.31,0.00023561,2]
[329181822,1718152339947,-500.0,0.00023561,2]
[329181823,1718152339958,-500.0,0.00023561,2]
[329181824,1718152339968,-864.77,0.00023561,2]
[329181825,1718152339978,-592.88,0.00023561,2]
[329181826,1718152339988,-500.0,0.00023561,2]
[329181827,1718152339998,-500.0,0.00023561,2]
[329181828,1718152340009,-664.93,0.00023561,2]
[329181829,1718152340019,-1633.51,0.00023561,2]
[329181830,1718152340029,-647.1,0.00023561,2]
[329181831,1718152340040,-758.29,0.00023561,2]
[329181832,1718152340050,-1322.83,0.00023561,2]
[329181833,1718152340060,-500.0,0.00023561,2]
[329181834,1718152340070,-1150.01,0.00023561,2]
[329181835,1718152340082,-702.84,0.00023561,2]
[329181836,1718152340093,-500.0,0.00023561,2]
[329181837,1718152340104,-760.22,0.00023561,2]
[329181838,1718152340115,-153.49279184,0.00023561,2]
[329181839,1718152340130,-611.42,0.00023561,2]
[329181840,1718152340142,-386.76,0.00023561,2]
[329181841,1718152340154,-1302.36,0.00023561,2]
[329181842,1718152340167,-164.79391979,0.00023561,2]
[329181843,1718152340178,-770.19,0.00023561,2]
[329181844,1718152340190,-583.36,0.00023561,2]
[329181845,1718152340202,-500.0,0.00023561,2]
[329181846,1718152340212,-500.0,0.00023561,2]
[329181847,1718152340223,-1251.7,0.00023561,2]
[329181848,1718152340233,-2724.7,0.00023561,2]
[329181849,1718152340244,-958.23,0.00023561,2]
[329181850,1718152340255,-1242.44,0.00023561,2]
[329181851,1718152340265,-715.59,0.00023561,2]
[329181852,1718152340276,-500.0,0.00023561,2]
[329181853,1718152340287,-581.19,0.00023561,2]
[329181854,1718152340298,-2185.89,0.00023561,2]
[329181855,1718152340309,-859.34,0.00023561,2]
[329181856,1718152340319,-1285.65,0.00023561,2]
[329181857,1718152340329,-565.93,0.00023561,2]
[329181858,1718152340340,-637.51,0.00023561,2]
[329181859,1718152340351,-500.0,0.00023561,2]
[329181860,1718152340362,-1027.85,0.00023561,2]
[329181861,1718152340373,-1828.02,0.00023561,2]
[329181862,1718152340384,-1832.91,0.00023561,2]
[329181863,1718152340395,-500.0,0.00023561,2]
[329181864,1718152340406,-879.61,0.00023561,2]
[329181865,1718152340417,-1675.58,0.00023561,2]
[329181866,1718152340428,-843.32,0.00023561,2]
[329181867,1718152340439,-775.96,0.00023561,2]
[329181868,1718152340452,-546.12,0.00023561,2]
[329181869,1718152340462,-2473.16,0.00023561,2]
[329181870,1718152340473,-1644.66,0.00023561,2]
[329181871,1718152340484,-608.83,0.00023561,2]
[329181872,1718152340495,-6166.54,0.00023561,2]
[329181873,1718152340506,-1432.45,0.00023561,2]
[329181874,1718152340517,-11639.91,0.00023561,2]
[329181875,1718152340528,-500.0,0.00023561,2]
[329181876,1718152340539,-684.92,0.00023561,2]
[329181877,1718152340550,-500.0,0.00023561,2]
[329181878,1718152340561,-720.68,0.00023561,2]
[329181879,1718152340572,-836.87,0.00023561,2]
[329181880,1718152340583,-2116.39,0.00023561,2]
[329181881,1718152340594,-2982.93,0.00023561,2]
[329181882,1718152340605,-500.0,0.00023561,2]
[329181883,1718152340616,-500.0,0.00023561,2]
[329181884,1718152340627,-2381.43,0.00023561,2]
[329181885,1718152340638,-544.79,0.00023561,2]
[329181886,1718152340649,-1373.33,0.00023561,2]
[329181887,1718152340664,-1677.62,0.00023561,2]
[329181888,1718152340675,-1337.01,0.00023561,2]
[329181889,1718152340687,-673.21,0.00023561,2]
[329181890,1718152340699,-8750.37,0.00023561,2]
[329181891,1718152340710,-799.51,0.00023561,2]
[329181892,1718152340721,-500.0,0.00023561,2]
[329181893,1718152340732,-5029.8,0.00023561,2]
[329181894,1718152340744,-1374.54,0.00023561,2]
[329181895,1718152340755,-14635.7,0.00023561,2]
[329181896,1718152340767,-500.0,0.00023561,2]
[329181897,1718152340778,-1639.97,0.00023561,2]
[329181898,1718152340789,-55467.75,0.00023561,2]
[329181899,1718152340801,-586.7214961,0.00023561,2]
[329181900,1718152341703,-889.8885039,0.00023561,2]
[329181901,1718152341714,-500.0,0.00023561,2]
[329181902,1718152341727,-1694.28,0.00023561,2]
[329181903,1718152341739,-611.49,0.00023561,2]
[329181904,1718152341750,-8487.8,0.00023561,2]
[329181905,1718152341762,-500.0,0.00023561,2]
[329181906,1718152341773,-500.0,0.00023561,2]
[329181907,1718152341785,-4233.25,0.00023561,2]
[329181908,1718152341796,-31639.75,0.00023561,2]
[329181909,1718152341808,-1040.34,0.00023561,2]
[329181910,1718152341820,-3757.38,0.00023561,2]
[329181911,1718152341831,-500.0,0.00023561,2]
[329181912,1718152341842,-500.0,0.00023561,2]
[329181913,1718152341853,-1454.99,0.00023561,2]
[329181914,1718152341864,-859.52,0.00023561,2]
[329181915,1718152341875,-2491.31,0.00023561,2]
[329181916,1718152341886,-2280.28,0.00023561,2]
[329181917,1718152341896,-500.0,0.00023561,2]
[329181918,1718152341906,-667.99,0.00023561,2]
[329181919,1718152341917,-948.31,0.00023561,2]
[329181920,1718152341945,-3248.8,0.00023561,2]
[329181921,1718152341956,-1784.52,0.00023561,2]
[329181922,1718152341967,-2626.46,0.00023561,2]
[329181923,1718152341979,-500.0,0.00023561,2]
[329181924,1718152341991,-1004.2,0.00023561,2]
[329181925,1718152342004,-1145.88,0.00023561,2]
[329181926,1718152342015,-1408.1,0.00023561,2]
[329181927,1718152342026,-2273.45,0.00023561,2]
[329181928,1718152342037,-287.45083178,0.00023561,2]
[329181929,1718152342048,-1209.21,0.00023561,2]
[329181930,1718152342059,-930.43,0.00023561,2]
[329181931,1718152342071,-1170.24,0.00023561,2]
[329181932,1718152342082,-788.93,0.00023561,2]
[329181933,1718152342094,-1149.05,0.00023561,2]
[329181934,1718152342106,-13437.77,0.00023561,2]
[329181935,1718152342118,-3818.53,0.00023561,2]
[329181936,1718152342132,-3130.09,0.00023561,2]
[329181937,1718152342145,-1310.08,0.00023561,2]
[329181938,1718152342158,-937.79,0.00023561,2]
[329181939,1718152342172,-1636.15,0.00023561,2]
[329181940,1718152342183,-4252.32,0.00023561,2]
[329181941,1718152342197,-2992.8,0.00023561,2]
[329181942,1718152342209,-500.0,0.00023561,2]
[329181943,1718152342221,-822.74,0.00023561,2]
[329181944,1718152342232,-1159.58,0.00023561,2]
[329181945,1718152342244,-500.0,0.00023561,2]
[329181946,1718152342255,-2563.57,0.00023561,2]
[329181947,1718152342267,-15717.99,0.00023561,2]
[329181948,1718152342278,-2005.55,0.00023561,2]
[329181949,1718152342289,-6296.83,0.00023561,2]
[329181950,1718152342302,-3223.86,0.00023561,2]
[329181951,1718152342312,-693.01,0.00023561,2]
[329181952,1718152342323,-6945.2,0.00023561,2]
[329181953,1718152342335,-814.28,0.00023561,2]
[329181954,1718152342346,-508.33,0.00023561,2]
[329181955,1718152342358,-500.0,0.00023561,2]
[329181956,1718152342369,-1572.98,0.00023561,2]
[329181957,1718152342380,-6193.09,0.00023561,2]
[329181958,1718152342392,-601.01,0.00023561,2]
[329181959,1718152342403,-500.0,0.00023561,2]
[329181960,1718152342416,-4096.16,0.00023561,2]
[329181961,1718152342427,-4787.7,0.00023561,2]
[329181962,1718152342437,-772.43,0.00023561,2]
[329181963,1718152342448,-1791.65,0.00023561,2]
[329181964,1718152342459,-7973.12,0.00023561,2]
[329181965,1718152342470,-5053.24,0.00023561,2]
[329181966,1718152342482,-500.0,0.00023561,2]
[329181967,1718152342493,-5354.26,0.00023561,2]
[329181968,1718152342505,-3948.83,0.00023561,2]
[329181969,1718152342516,-553.84,0.00023561,2]
[329181970,1718152342527,-1340.43,0.00023561,2]
[329181971,1718152342538,-709.59,0.00023561,2]
[329181972,1718152342549,-2722.79,0.00023561,2]
[329181973,1718152342560,-170.85639614,0.00023561,2]
[329181974,1718152342571,-3052.41,0.00023561,2]
[329181975,1718152342582,-553.91,0.00023561,2]
[329181976,1718152342593,-1947.62,0.00023561,2]
[329181977,1718152342605,-2248.59,0.00023561,2]
[329181978,1718152342615,-1267.75,0.00023561,2]
[329181979,1718152342626,-500.0,0.00023561,2]
[329181980,1718152342637,-21764.24,0.00023561,2]
[329181981,1718152342648,-664.97,0.00023561,2]
[329181982,1718152342660,-3643.8,0.00023561,2]
[329181983,1718152342672,-933.23,0.00023561,2]
[329181984,1718152342683,-993.14,0.00023561,2]
[329181985,1718152342695,-2014.17,0.00023561,2]
[329181986,1718152342706,-3779.59,0.00023561,2]
[329181987,1718152342716,-2124.27,0.00023561,2]
[329181988,1718152342727,-500.0,0.00023561,2]
[329181989,1718152342738,-1155.31,0.00023561,2]
[329181990,1718152342750,-2069.74,0.00023561,2]
[329181991,1718152342761,-1829.75,0.00023561,2]
[329181992,1718152342773,-7244.58,0.00023561,2]
[329181993,1718152342785,-535.12,0.00023561,2]
[329181994,1718152342797,-966.69,0.00023561,2]
[329181995,1718152342809,-501.41,0.00023561,2]
[329181996,1718152342820,-2887.58,0.00023561,2]
[329181997,1718152342831,-573.32,0.00023561,2]
[329181998,1718152342843,-887.04,0.00023561,2]
[329181999,1718152342854,-798.17,0.00023561,2]
[329182000,1718152342865,-1475.27,0.00023561,2]
[329182001,1718152342876,-500.0,0.00023561,2]
[329182002,1718152342888,-5774.73,0.00023561,2]
[329182003,1718152342899,-2320.17,0.00023561,2]
[329182004,1718152342909,-4440.03,0.00023561,2]
[329182005,1718152342924,-1224.67,0.00023561,2]
[329182006,1718152342955,-2701.18,0.00023561,2]
[329182007,1718152342966,-500.0,0.00023561,2]
[329182008,1718152342977,-3233.51,0.00023561,2]
[329182009,1718152342989,-500.0,0.00023561,2]
[329182010,1718152343000,-4631.33,0.00023561,2]
[329182011,1718152343013,-5258.17,0.00023561,2]
[329182012,1718152343026,-10039.9,0.00023561,2]
[329182013,1718152343037,-1536.62,0.00023561,2]
[329182014,1718152343050,-3703.49,0.00023561,2]
[329182015,1718152343062,-664.9,0.00023561,2]
[329182016,1718152343073,-5740.59,0.00023561,2]
[329182017,1718152343085,-679.79,0.00023561,2]
[329182018,1718152343096,-500.0,0.00023561,2]
[329182019,1718152343326,-527.5,0.00023561,2]
[329182020,1718152343338,-4174.68,0.00023561,2]
[329182021,1718152343349,-1010.03,0.00023561,2]
[329182022,1718152343359,-1523.49,0.00023561,2]
[329182023,1718152343372,-826.15,0.00023561,2]
[329182024,1718152343384,-3077.97,0.00023561,2]
[329182025,1718152343395,-500.0,0.00023561,2]
[329182026,1718152343406,-1737.39,0.00023561,2]
[329182027,1718152343418,-3723.53,0.00023561,2]
[329182028,1718152343429,-1279.11,0.00023561,2]
[329182029,1718152343440,-921.67,0.00023561,2]
[329182030,1718152343452,-3554.93,0.00023561,2]
[329182031,1718152343465,-13892.86,0.00023561,2]
[329182032,1718152343476,-1815.54,0.00023561,2]
[329182033,1718152343487,-3828.74,0.00023561,2]
[329182034,1718152343497,-500.0,0.00023561,2]
[329182035,1718152343510,-3873.2,0.00023561,2]
[329182036,1718152343521,-1478.12,0.00023561,2]
[329182037,1718152343532,-1688.75,0.00023561,2]
[329182038,1718152343544,-1745.11,0.00023561,2]
[329182039,1718152343554,-1169.97,0.00023561,2]
[329182040,1718152343564,-2826.64,0.00023561,2]
[329182041,1718152343576,-2660.92,0.00023561,2]
[329182042,1718152343587,-585.03,0.00023561,2]
[329182043,1718152343597,-1499.27,0.00023561,2]
[329182044,1718152343608,-4162.53,0.00023561,2]
[329182045,1718152343619,-553.25,0.00023561,2]
[329182046,1718152343629,-522.78410755,0.00023561,2]
[329182047,1718152343640,-500.0,0.00023561,2]
[329182048,1718152343650,-3311.26,0.00023561,2]
[329182049,1718152343662,-9068.66,0.00023561,2]
[329182050,1718152343673,-5034.1,0.00023561,2]
[329182051,1718152343684,-814.67,0.00023561,2]
[329182052,1718152343695,-1677.98,0.00023561,2]
[329182053,1718152343706,-4308.06,0.00023561,2]
[329182054,1718152343717,-1697.49,0.00023561,2]
[329182055,1718152343728,-500.0,0.00023561,2]
[329182056,1718152343738,-561.99,0.00023561,2]
[329182057,1718152343748,-1323.25,0.00023561,2]
[329182058,1718152343759,-500.0,0.00023561,2]
[329182059,1718152343770,-2144.81,0.00023561,2]
[329182060,1718152343780,-3545.84,0.00023561,2]
[329182061,1718152343791,-1141.61,0.00023561,2]
[329182062,1718152343801,-990.08,0.00023561,2]
[329182063,1718152343812,-1853.92,0.00023561,2]
[329182064,1718152343823,-3158.79,0.00023561,2]
[329182065,1718152343834,-3056.61,0.00023561,2]
[329182066,1718152343844,-13300.03,0.00023561,2]
[329182067,1718152343855,-4887.15,0.00023561,2]
[329182068,1718152343867,-1422.63,0.00023561,2]
[329182069,1718152343878,-3636.03,0.00023561,2]
[329182070,1718152343889,-521.15,0.00023561,2]
[329182071,1718152343899,-1437.79,0.00023561,2]
[329182072,1718152343909,-1459.51,0.00023561,2]
[329182073,1718152343920,-500.0,0.00023561,2]
[329182074,1718152343933,-2751.22,0.00023561,2]
[329182075,1718152343949,-500.0,0.00023561,2]
[329182076,1718152343960,-593.82,0.00023561,2]
[329182077,1718152343973,-1998.63,0.00023561,2]
[329182078,1718152343983,-919.64,0.00023561,2]
[329182079,1718152343996,-938.25,0.00023561,2]
[329182080,1718152344008,-1206.33,0.00023561,2]
[329182081,1718152344019,-653.38,0.00023561,2]
[329182082,1718152344030,-1110.54,0.00023561,2]
[329182083,1718152344041,-4598.01,0.00023561,2]
[329182084,1718152344053,-2178.93,0.00023561,2]
[329182085,1718152344065,-500.0,0.00023561,2]
[329182086,1718152344077,-3919.34,0.00023561,2]
[329182087,1718152344088,-500.0,0.00023561,2]
[329182088,1718152344100,-2168.86,0.00023561,2]
[329182089,1718152344112,-988.74,0.00023561,2]
[329182090,1718152344127,-1758.54,0.00023561,2]
[329182091,1718152344139,-1057.94,0.00023561,2]
[329182092,1718152344150,-2592.38,0.00023561,2]
[329182093,1718152344161,-1265.05,0.00023561,2]
[329182094,1718152344172,-500.0,0.00023561,2]
[329182095,1718152344183,-2116.3,0.00023561,2]
[329182096,1718152344195,-1374.24,0.00023561,2]
[329182097,1718152344206,-21921.66391273,0.000236,2]
[329182098,1718152344216,-175.249427,0.00023646,2]
[329182099,1718152344229,-181.773188,0.00023646,2]
[329182100,1718152344241,-181.948148,0.00023646,2]
[329182101,1718152344252,-186.387384,0.00023646,2]
[329182102,1718152344263,-168.378438,0.00023646,2]
[329182103,1718152344275,-150.0,0.00023685,2]
[329182104,1718152344287,-631.65,0.00023698,2]
[329182105,1718152344298,-500.0,0.00023698,2]
[329182106,1718152344308,-500.0,0.00023698,2]
[329182107,1718152344319,-500.0,0.00023698,2]
[329182108,1718152344330,-500.0,0.00023698,2]
[329182109,1718152344341,-500.0,0.00023698,2]
[329182110,1718152344351,-500.0,0.00023698,2]
[329182111,1718152344362,-1099.52,0.00023698,2]
[329182112,1718152344373,-500.0,0.00023698,2]
[329182113,1718152344385,-1325.77,0.00023698,2]
[329182114,1718152344396,-500.0,0.00023698,2]
[329182115,1718152344407,-543.55,0.00023698,2]
[329182116,1718152344418,-500.0,0.00023698,2]
[329182117,1718152344429,-810.56,0.00023698,2]
[329182118,1718152344440,-500.0,0.00023698,2]
[329182119,1718152344453,-500.0,0.00023698,2]
[329182120,1718152344463,-563.6,0.00023698,2]
[329182121,1718152344474,-604.04,0.00023698,2]
[329182122,1718152344484,-711.93,0.00023698,2]
[329182123,1718152344495,-555.37,0.00023698,2]
[329182124,1718152344505,-500.0,0.00023698,2]
[329182125,1718152344515,-775.81,0.00023698,2]
[329182126,1718152344526,-492.55716514,0.00023698,2]
[329182127,1718152344536,-500.0,0.00023698,2]
[329182128,1718152344547,-748.54,0.00023698,2]
[329182129,1718152344557,-750.16,0.00023698,2]
[329182130,1718152344568,-500.0,0.00023698,2]
[329182131,1718152344579,-500.0,0.00023698,2]
[329182132,1718152344589,-500.0,0.00023698,2]
[329182133,1718152344600,-240.52875829,0.00023698,2]
[329182134,1718152344611,-500.0,0.00023698,2]
[329182135,1718152344622,-500.0,0.00023698,2]
[329182136,1718152344633,-559.1074021,0.00023698,2]
[329182137,1718152344644,-500.0,0.00023698,2]
[329182138,1718152344654,-789.95,0.00023698,2]
[329182139,1718152344665,-500.0,0.00023698,2]
[329182140,1718152344675,-500.0,0.00023698,2]
[329182141,1718152344686,-966.66,0.00023698,2]
[329182142,1718152344697,-701.89,0.00023698,2]
[329182143,1718152344707,-500.0,0.00023698,2]
[329182144,1718152344717,-529.44,0.00023698,2]
[329182145,1718152344728,-727.38,0.00023698,2]
[329182146,1718152344738,-591.24,0.00023698,2]
[329182147,1718152344748,-538.09,0.00023698,2]
[329182148,1718152344758,-200.0,0.00023698,2]
[329182149,1718152344769,-500.0,0.00023698,2]
[329182150,1718152344779,-729.66,0.00023698,2]
[329182151,1718152344790,-670.93,0.00023698,2]
[329182152,1718152344800,-500.0,0.00023698,2]
[329182153,1718152344811,-523.1,0.00023698,2]
[329182154,1718152344821,-988.71,0.00023698,2]
[329182155,1718152344831,-500.0,0.00023698,2]
[329182156,1718152344842,-500.0,0.00023698,2]
[329182157,1718152344853,-530.44,0.00023698,2]
[329182158,1718152344863,-595.33,0.00023698,2]
[329182159,1718152344873,-840.47,0.00023698,2]
[329182160,1718152344885,-1941.81,0.00023698,2]
[329182161,1718152344895,-500.0,0.00023698,2]
[329182162,1718152344906,-561.48,0.00023698,2]
[329182163,1718152344916,-500.0,0.00023698,2]
[329182164,1718152344931,-800.04,0.00023698,2]
[329182165,1718152344947,-1283.53,0.00023698,2]
[329182166,1718152344960,-1896.67,0.00023698,2]
[329182167,1718152344970,-500.0,0.00023698,2]
[329182168,1718152344981,-518.99,0.00023698,2]
[329182169,1718152344992,-500.0,0.00023698,2]
[329182170,1718152345002,-518.56,0.00023698,2]
[329182171,1718152345012,-1025.14,0.00023698,2]
[329182172,1718152345023,-819.72,0.00023698,2]
[329182173,1718152345035,-1865.88,0.00023698,2]
[329182174,1718152345050,-651.19,0.00023698,2]
[329182175,1718152345074,-826.56,0.00023698,2]
[329182176,1718152345093,-500.0,0.00023698,2]
[329182177,1718152345115,-1601.82,0.00023698,2]
[329182178,1718152345138,-1153.34,0.00023698,2]
[329182179,1718152345162,-544.75,0.00023698,2]
[329182180,1718152345180,-738.52,0.00023698,2]
[329182181,1718152345203,-1568.24,0.00023698,2]
[329182182,1718152345219,-840.37,0.00023698,2]
[329182183,1718152345239,-500.0,0.00023698,2]
[329182184,1718152345259,-729.39,0.00023698,2]
[329182185,1718152345276,-615.88,0.00023698,2]
[329182186,1718152345292,-540.87,0.00023698,2]
[329182187,1718152345310,-1809.39,0.00023698,2]
[329182188,1718152345327,-1076.6,0.00023698,2]
[329182189,1718152345343,-816.28,0.00023698,2]
[329182190,1718152345361,-504.47,0.00023698,2]
[329182191,1718152345380,-500.0,0.00023698,2]
[329182192,1718152345401,-500.0,0.00023698,2]
[329182193,1718152345423,-798.81,0.00023698,2]
[329182194,1718152345439,-512.35,0.00023698,2]
[329182195,1718152345458,-703.67,0.00023698,2]
[329182196,1718152345476,-661.03,0.00023698,2]
[329182197,1718152345492,-500.0,0.00023698,2]
[329182198,1718152345510,-1005.72,0.00023698,2]
[329182199,1718152345527,-500.0,0.00023698,2]
[329182200,1718152345544,-1340.89,0.00023698,2]
[329182201,1718152345561,-2099.17,0.00023698,2]
[329182202,1718152345579,-610.2,0.00023698,2]
[329182203,1718152345596,-783.34,0.00023698,2]
[329182204,1718152345612,-1983.47,0.00023698,2]
[329182205,1718152345629,-1398.35,0.00023698,2]
[329182206,1718152345645,-606.83,0.00023698,2]
[329182207,1718152345661,-621.86,0.00023698,2]
[329182208,1718152345677,-504.13,0.00023698,2]
[329182209,1718152345694,-783.93,0.00023698,2]
[329182210,1718152345710,-1012.19,0.00023698,2]
[329182211,1718152345726,-1202.81,0.00023698,2]
[329182212,1718152345743,-1163.8,0.00023698,2]
[329182213,1718152345759,-907.37,0.00023698,2]
[329182214,1718152345777,-606.13,0.00023698,2]
[329182215,1718152345793,-565.33,0.00023698,2]
[329182216,1718152345811,-1994.75,0.00023698,2]
[329182217,1718152345826,-984.93,0.00023698,2]
[329182218,1718152345841,-500.0,0.00023698,2]
[329182219,1718152345857,-1645.17,0.00023698,2]
[329182220,1718152345875,-771.29,0.00023698,2]
[329182221,1718152345891,-590.08,0.00023698,2]
[329182222,1718152345907,-1133.5,0.00023698,2]
[329182223,1718152345924,-500.0,0.00023698,2]
[329182224,1718152345943,-500.0,0.00023698,2]
[329182225,1718152345959,-500.0,0.00023698,2]
[329182226,1718152345977,-968.94,0.00023698,2]
[329182227,1718152345991,-500.0,0.00023698,2]
[329182228,1718152346003,-1789.81,0.00023698,2]
[329182229,1718152346013,-1439.21,0.00023698,2]
[329182230,1718152346023,-500.0,0.00023698,2]
[329182231,1718152346034,-500.0,0.00023698,2]
[329182232,1718152346044,-500.0,0.00023698,2]
[329182233,1718152346055,-529.89,0.00023698,2]
[329182234,1718152346066,-1448.71,0.00023698,2]
[329182235,1718152346077,-500.0,0.00023698,2]
[329182236,1718152346088,-1812.13,0.00023698,2]
[329182237,1718152346099,-514.1,0.00023698,2]
[329182238,1718152346111,-534.56,0.00023698,2]
[329182239,1718152346128,-500.0,0.00023698,2]
[329182240,1718152346139,-1485.3,0.00023698,2]
[329182241,1718152346150,-614.92,0.00023698,2]
[329182242,1718152346161,-766.83,0.00023698,2]
[329182243,1718152346171,-633.23,0.00023698,2]
[329182244,1718152346182,-700.18,0.00023698,2]
[329182245,1718152346192,-916.34,0.00023698,2]
[329182246,1718152346204,-500.0,0.00023698,2]
[329182247,1718152346214,-627.02,0.00023698,2]
[329182248,1718152346226,-500.0,0.00023698,2]
[329182249,1718152346237,-500.0,0.00023698,2]
[329182250,1718152346248,-500.0,0.00023698,2]
[329182251,1718152346259,-500.0,0.00023698,2]
[329182252,1718152346270,-604.68,0.00023698,2]
[329182253,1718152346281,-517.38,0.00023698,2]
[329182254,1718152346292,-903.25,0.00023698,2]
[329182255,1718152346303,-500.0,0.00023698,2]
[329182256,1718152346314,-312.48240912,0.00023698,2]
[329182257,1718152346351,-1303.96759088,0.00023698,2]
[329182258,1718152346363,-1465.81,0.00023698,2]
[329182259,1718152346374,-500.0,0.00023698,2]
[329182260,1718152346386,-1848.49,0.00023698,2]
[329182261,1718152346397,-500.0,0.00023698,2]
[329182262,1718152346409,-136.44020945,0.00023698,2]
[329182263,1718152346443,-536.33979055,0.00023698,2]
[329182264,1718152346455,-742.65,0.00023698,2]
[329182265,1718152346466,-725.49980945,0.00023698,2]
[329182266,1718152346479,-306.00019055,0.00023698,2]
[329182267,1718152346491,-279.22649046,0.00023698,2]
[329182268,1718152346603,-1332.58,0.00021917,2]
[329182269,1718152346615,-220.77350954,0.00023698,2]
[329182270,1718152346626,-502.60287009,0.00023698,2]
[329182271,1718152346640,-442.81712991,0.00023698,2]
[329182272,1718152346650,-789.78112851,0.00023698,2]
[329182273,1718152346683,-17.81887149,0.00023698,2]
[329182274,1718152346696,-521.83,0.00023698,2]
[329182275,1718152346707,-444.22014882,0.00023698,2]
[329182276,1718152346862,-375.93228978,0.00022054,2]
[329182277,1718152347899,-956.64771022,0.00022054,2]
[329182278,1718152347917,-1332.58,0.00022191,2]
[329182279,1718152347937,-933.53985118,0.00023698,2]
[329182280,1718152347956,-975.07,0.00023698,2]
[329182281,1718152347971,-1135.56,0.00023698,2]
[329182282,1718152347982,-504.6,0.00023698,2]
[329182283,1718152347992,-500.0,0.00023698,2]
[329182284,1718152348003,-735.45,0.00023698,2]
[329182285,1718152348014,-1889.55,0.00023698,2]
[329182286,1718152348025,-2234.48,0.00023698,2]
[329182287,1718152348037,-500.0,0.00023698,2]
[329182288,1718152348047,-669.88,0.00023698,2]
[329182289,1718152348059,-902.77,0.00023698,2]
[329182290,1718152348069,-1437.12,0.00023698,2]
[329182291,1718152348081,-872.07,0.00023698,2]
[329182292,1718152348094,-832.07,0.00023698,2]
[329182293,1718152348105,-595.17,0.00023698,2]
[329182294,1718152348119,-506.33,0.00023698,2]
[329182295,1718152348132,-678.38,0.00023698,2]
[329182296,1718152348142,-341.39936825,0.00023698,2]
[329182297,1718152470314,3865.04449542,0.0001298,2]
[329182298,1718152530022,6495.8495814,0.000101,2]
[329182314,1718153432543,-500.0,0.00013899,2]
[329182315,1718153432579,-286.5384728,0.00013899,2]
[329182316,1718153432589,-2249.75653523,0.000139,2]
[329182317,1718153432603,-337.01790852,0.000139,2]
[329182318,1718153432615,-10844.00855625,0.000139,2]
[329182319,1718153432626,-23.96796089,0.00013918,2]
[329182320,1718153432829,-126.03203911,0.00013918,2]
[329182321,1718153432840,-1007.12926026,0.00013943,2]
[329182322,1718153432946,-1978.62811096,0.00013943,2]
[329182323,1718153432957,-752.30654583,0.00013947,2]
[329182324,1718153432968,-408.2655,0.00013948,2]
[329182325,1718153432978,-432.1907,0.00013948,2]
[329182326,1718153432990,-1000.0,0.00013948,2]